[Event "Live Chess"]
[Site "Chess.com"]
[Date "2023.05.21"]
[Round "-"]
[White "Conradical12"]
[Black "LiamBellwood"]
[Result "0-1"]
[WhiteElo "1632"]
[BlackElo "2011"]
[TimeControl "300"]
[EndTime "20:19:15 PDT"]
[Termination "LiamBellwood won by checkmate"]

1. e4 {[%clk 0:04:58.4]} 1... e6 {[%clk 0:04:59.9]} 2. d4 {[%clk 0:04:56.9]}
2... d5 {[%clk 0:04:59.6]} 3. exd5 {[%clk 0:04:55.9]} 3... exd5 {[%clk
0:04:59.5]} 4. Bd3 {[%clk 0:04:54.6]} 4... Bd6 {[%clk 0:04:59]} 5. Nf3 {[%clk
0:04:54.2]} 5... Ne7 {[%clk 0:04:58.6]} 6. Be3 {[%clk 0:04:53.5]} 6... Nbc6
{[%clk 0:04:55]} 7. Nbd2 {[%clk 0:04:49.7]} 7... Bg4 {[%clk 0:04:54.4]} 8. c3
{[%clk 0:04:48.2]} 8... Qd7 {[%clk 0:04:53.4]} 9. Qc2 {[%clk 0:04:46.9]} 9... f6
{[%clk 0:04:48.1]} 10. O-O-O {[%clk 0:04:44.8]} 10... Bf5 {[%clk 0:04:47.2]} 11.
Rhe1 {[%clk 0:04:41.4]} 11... Bxd3 {[%clk 0:04:45.9]} 12. Qxd3 {[%clk
0:04:40.1]} 12... O-O {[%clk 0:04:44]} 13. h4 {[%clk 0:04:38]} 13... Qf5 {[%clk
0:04:42.3]} 14. Qb5 {[%clk 0:04:33.3]} 14... a6 {[%clk 0:04:31]} 15. Qf1 {[%clk
0:04:28.9]} 15... Ng6 {[%clk 0:04:23.1]} 16. Qe2 {[%clk 0:04:25.9]} 16... Rfe8
{[%clk 0:04:21.7]} 17. h5 {[%clk 0:04:16.6]} 17... Nf4 {[%clk 0:04:20.8]} 18.
Qf1 {[%clk 0:04:07.5]} 18... Nxh5 {[%clk 0:04:18]} 19. g3 {[%clk 0:04:00]} 19...
g6 {[%clk 0:03:50.2]} 20. Nh4 {[%clk 0:03:57.8]} 20... Qd7 {[%clk 0:03:36.7]}
21. Qd3 {[%clk 0:03:55.3]} 21... Ng7 {[%clk 0:03:33.7]} 22. Bh6 {[%clk
0:03:53.7]} 22... Rxe1 {[%clk 0:03:27.2]} 23. Rxe1 {[%clk 0:03:52.2]} 23... Re8
{[%clk 0:03:26]} 24. Rxe8+ {[%clk 0:03:49.4]} 24... Qxe8 {[%clk 0:03:22.1]} 25.
Bxg7 {[%clk 0:03:48.6]} 25... Kxg7 {[%clk 0:03:22]} 26. Ndf3 {[%clk 0:03:44]}
26... Na5 {[%clk 0:03:13.2]} 27. Nh2 {[%clk 0:03:26.6]} 27... Nc4 {[%clk
0:03:05.1]} 28. Ng4 {[%clk 0:03:17.6]} 28... Qe1+ {[%clk 0:03:03.7]} 29. Kc2
{[%clk 0:03:15.6]} 29... f5 {[%clk 0:02:51.9]} 30. Nxf5+ {[%clk 0:03:07.6]}
30... gxf5 {[%clk 0:02:42.2]} 31. Qxf5 {[%clk 0:03:07]} 31... Qd2+ {[%clk
0:02:41]} 32. Kb3 {[%clk 0:03:05.8]} 32... Qxb2+ {[%clk 0:02:39.7]} 33. Ka4
{[%clk 0:03:04.9]} 33... Qb5# {[%clk 0:02:39.6]} 0-1

[Event "Live Chess"]
[Site "Chess.com"]
[Date "2023.05.21"]
[Round "-"]
[White "Pablo_dmp"]
[Black "Tushinskiy"]
[Result "0-1"]
[WhiteElo "1859"]
[BlackElo "2210"]
[TimeControl "300"]
[EndTime "20:19:17 PDT"]
[Termination "Tushinskiy won by resignation"]

1. e4 {[%clk 0:04:57.8]} 1... e5 {[%clk 0:04:58.8]} 2. Nc3 {[%clk 0:04:56.3]}
2... d6 {[%clk 0:04:58.7]} 3. Bc4 {[%clk 0:04:54.8]} 3... Nf6 {[%clk 0:04:57.5]}
4. d3 {[%clk 0:04:52.4]} 4... Be7 {[%clk 0:04:55.9]} 5. f4 {[%clk 0:04:51]} 5...
O-O {[%clk 0:04:55.8]} 6. Nf3 {[%clk 0:04:47.3]} 6... Bg4 {[%clk 0:04:54.6]} 7.
O-O {[%clk 0:04:45.1]} 7... Nbd7 {[%clk 0:04:53.7]} 8. h3 {[%clk 0:04:43.4]}
8... Bxf3 {[%clk 0:04:52.6]} 9. Qxf3 {[%clk 0:04:43.3]} 9... c6 {[%clk
0:04:52.4]} 10. f5 {[%clk 0:04:37.5]} 10... b5 {[%clk 0:04:51.3]} 11. Bb3 {[%clk
0:04:36.1]} 11... a5 {[%clk 0:04:50.9]} 12. a4 {[%clk 0:04:34.7]} 12... b4
{[%clk 0:04:50.1]} 13. Ne2 {[%clk 0:04:33.7]} 13... Nc5 {[%clk 0:04:50]} 14. Bc4
{[%clk 0:04:26.7]} 14... d5 {[%clk 0:04:48.4]} 15. exd5 {[%clk 0:04:25.8]} 15...
cxd5 {[%clk 0:04:48.3]} 16. Bb3 {[%clk 0:04:23.5]} 16... e4 {[%clk 0:04:43.7]}
17. dxe4 {[%clk 0:04:09.9]} 17... dxe4 {[%clk 0:04:43.6]} 18. Qg3 {[%clk
0:04:08.5]} 18... Bd6 {[%clk 0:04:40.5]} 19. Qe3 {[%clk 0:03:57.8]} 19... Rc8
{[%clk 0:04:36]} 20. Bd2 {[%clk 0:03:54.6]} 20... Nxb3 {[%clk 0:04:34.3]} 21.
Qxb3 {[%clk 0:03:54.5]} 21... Bc5+ {[%clk 0:04:30.9]} 22. Be3 {[%clk 0:03:51.4]}
22... Bxe3+ {[%clk 0:04:30]} 23. Qxe3 {[%clk 0:03:51.3]} 23... Rxc2 {[%clk
0:04:29.1]} 24. Rad1 {[%clk 0:03:42.1]} 24... Qe8 {[%clk 0:04:21.5]} 25. b3
{[%clk 0:03:39.7]} 25... Qe5 {[%clk 0:04:15.6]} 26. Qd4 {[%clk 0:03:27.5]} 26...
Qb8 {[%clk 0:04:06.3]} 27. Nf4 {[%clk 0:03:24.1]} 27... h6 {[%clk 0:04:03.6]}
28. Nd5 {[%clk 0:03:20.4]} 28... Nxd5 {[%clk 0:04:02.4]} 29. Qxd5 {[%clk
0:03:19.1]} 29... Re8 {[%clk 0:03:58.9]} 30. Rfe1 {[%clk 0:03:16.6]} 30... Qg3
{[%clk 0:03:56.7]} 0-1

[Event "Live Chess"]
[Site "Chess.com"]
[Date "2023.05.21"]
[Round "-"]
[White "worldchessleaguelive"]
[Black "VovaOvchar1990"]
[Result "1/2-1/2"]
[WhiteElo "1366"]
[BlackElo "1234"]
[TimeControl "300"]
[EndTime "20:19:31 PDT"]
[Termination "Game drawn by repetition"]

1. d4 {[%clk 0:04:56.8]} 1... d5 {[%clk 0:04:58.3]} 2. Bf4 {[%clk 0:04:54.8]}
2... Bf5 {[%clk 0:04:56.7]} 3. Nf3 {[%clk 0:04:53.9]} 3... Nc6 {[%clk
0:04:54.8]} 4. e3 {[%clk 0:04:53.3]} 4... a6 {[%clk 0:04:53.1]} 5. Be2 {[%clk
0:04:52.6]} 5... Nf6 {[%clk 0:04:51.3]} 6. O-O {[%clk 0:04:52.1]} 6... e6 {[%clk
0:04:49.7]} 7. h3 {[%clk 0:04:51]} 7... h6 {[%clk 0:04:48]} 8. Nbd2 {[%clk
0:04:49.6]} 8... Nb4 {[%clk 0:04:41.9]} 9. c3 {[%clk 0:04:39.7]} 9... Nc6 {[%clk
0:04:34.7]} 10. g4 {[%clk 0:04:37]} 10... Bh7 {[%clk 0:04:32.9]} 11. Ne5 {[%clk
0:04:35.2]} 11... Nxe5 {[%clk 0:04:30.3]} 12. dxe5 {[%clk 0:04:32]} 12... Nd7
{[%clk 0:04:28.5]} 13. Nf3 {[%clk 0:04:29.8]} 13... Nb6 {[%clk 0:04:24.4]} 14.
a4 {[%clk 0:04:25.8]} 14... Be7 {[%clk 0:04:19.6]} 15. a5 {[%clk 0:04:24.8]}
15... Nc8 {[%clk 0:04:16.8]} 16. Qa4+ {[%clk 0:04:22.7]} 16... c6 {[%clk
0:04:13.9]} 17. Nd4 {[%clk 0:04:17.4]} 17... O-O {[%clk 0:04:06.2]} 18. b4
{[%clk 0:04:03.8]} 18... b5 {[%clk 0:04:00.2]} 19. Qd1 {[%clk 0:04:01.1]} 19...
Bg5 {[%clk 0:03:53.4]} 20. Nxc6 {[%clk 0:03:55.2]} 20... Qc7 {[%clk 0:03:48]}
21. Bxg5 {[%clk 0:03:52]} 21... Qxc6 {[%clk 0:03:39.3]} 22. Bf4 {[%clk
0:03:47.3]} 22... Qxc3 {[%clk 0:03:37]} 23. Qd4 {[%clk 0:03:43.3]} 23... Qxd4
{[%clk 0:03:03.4]} 24. exd4 {[%clk 0:03:34.4]} 24... Ne7 {[%clk 0:03:02.5]} 25.
Rfc1 {[%clk 0:03:30.6]} 25... Rfc8 {[%clk 0:03:00.7]} 26. Rc5 {[%clk 0:03:27.8]}
26... Ng6 {[%clk 0:02:49.9]} 27. Be3 {[%clk 0:03:17.9]} 27... Ne7 {[%clk
0:02:35.6]} 28. Rac1 {[%clk 0:03:15.2]} 28... Be4 {[%clk 0:02:31.4]} 29. Rxc8+
{[%clk 0:03:11.4]} 29... Rxc8 {[%clk 0:02:29.3]} 30. f3 {[%clk 0:02:58.8]} 30...
Rxc1+ {[%clk 0:02:22.6]} 31. Bxc1 {[%clk 0:02:56.6]} 31... Bc2 {[%clk 0:02:21]}
32. Kf2 {[%clk 0:02:46.9]} 32... Bb3 {[%clk 0:02:19]} 33. f4 {[%clk 0:02:40.5]}
33... Nc6 {[%clk 0:02:14.9]} 34. Ke3 {[%clk 0:02:20.2]} 34... Nxb4 {[%clk
0:02:13.2]} 35. Bd2 {[%clk 0:02:11.8]} 35... Nc2+ {[%clk 0:02:07.1]} 36. Kd3
{[%clk 0:02:10.9]} 36... Na3 {[%clk 0:01:56.3]} 37. Kc3 {[%clk 0:02:03.7]} 37...
Ba4 {[%clk 0:01:34.4]} 38. Kb4 {[%clk 0:01:54.2]} 38... Kf8 {[%clk 0:01:07.8]}
39. Kxa3 {[%clk 0:01:52.3]} 39... Ke7 {[%clk 0:01:05.9]} 40. Kb4 {[%clk
0:01:49.5]} 40... Kd7 {[%clk 0:01:02.8]} 41. Bxb5+ {[%clk 0:01:48.4]} 41... Bxb5
{[%clk 0:01:00.4]} 42. Kc5 {[%clk 0:01:40.9]} 42... Bf1 {[%clk 0:00:54.3]} 43.
h4 {[%clk 0:01:30.9]} 43... Kc7 {[%clk 0:00:50.7]} 44. g5 {[%clk 0:01:25.6]}
44... hxg5 {[%clk 0:00:47.9]} 45. fxg5 {[%clk 0:01:23.5]} 45... Be2 {[%clk
0:00:44.8]} 46. Bb4 {[%clk 0:01:11.4]} 46... g6 {[%clk 0:00:41.7]} 47. Bd2
{[%clk 0:01:01.7]} 47... Bb5 {[%clk 0:00:39.1]} 48. Bf4 {[%clk 0:00:51.2]} 48...
Kd7 {[%clk 0:00:36.2]} 49. Kb6 {[%clk 0:00:49.2]} 49... Ke8 {[%clk 0:00:33.8]}
50. Kc7 {[%clk 0:00:47.4]} 50... Ke7 {[%clk 0:00:30.4]} 51. Bd2 {[%clk 0:00:45]}
51... Kf8 {[%clk 0:00:28]} 52. Kd8 {[%clk 0:00:38.8]} 52... Bc4 {[%clk
0:00:24.7]} 53. Bb4+ {[%clk 0:00:36.1]} 53... Kg8 {[%clk 0:00:22.7]} 54. Ke7
{[%clk 0:00:34.7]} 54... Bb5 {[%clk 0:00:20.7]} 55. Kf6 {[%clk 0:00:32.7]} 55...
Bc4 {[%clk 0:00:19.1]} 56. Be7 {[%clk 0:00:30.8]} 56... Bb5 {[%clk 0:00:17.7]}
57. Bd8 {[%clk 0:00:29.2]} 57... Bc4 {[%clk 0:00:16.7]} 58. Bb6 {[%clk
0:00:27.6]} 58... Bb5 {[%clk 0:00:16]} 59. Ba7 {[%clk 0:00:26.5]} 59... Bc4
{[%clk 0:00:14.5]} 60. Bb8 {[%clk 0:00:25.4]} 60... Bb5 {[%clk 0:00:14]} 61. Bc7
{[%clk 0:00:23.8]} 61... Bc4 {[%clk 0:00:13.1]} 62. Bd8 {[%clk 0:00:22.9]} 62...
Bb5 {[%clk 0:00:12.8]} 63. Be7 {[%clk 0:00:21.5]} 63... Bc4 {[%clk 0:00:12]} 64.
Bd6 {[%clk 0:00:20.2]} 64... Bb5 {[%clk 0:00:11.1]} 65. Ba3 {[%clk 0:00:19.1]}
65... Bc4 {[%clk 0:00:10.8]} 66. Bc1 {[%clk 0:00:18.1]} 66... Bb5 {[%clk
0:00:09.8]} 67. Bf4 {[%clk 0:00:17.1]} 67... Bc4 {[%clk 0:00:09.6]} 68. Bg3
{[%clk 0:00:16.2]} 68... Bb5 {[%clk 0:00:08.8]} 69. Bf4 {[%clk 0:00:15.5]} 69...
Bc4 {[%clk 0:00:07.6]} 70. Bd2 {[%clk 0:00:14.7]} 70... Bb5 {[%clk 0:00:07.5]}
71. Bb4 {[%clk 0:00:13.9]} 71... Bc4 {[%clk 0:00:06.8]} 72. Bc5 {[%clk
0:00:13.7]} 72... Bb5 {[%clk 0:00:06.2]} 73. Bb6 {[%clk 0:00:13.4]} 73... Bc4
{[%clk 0:00:05.9]} 74. Bc7 {[%clk 0:00:13.1]} 74... Bb5 {[%clk 0:00:05.6]} 75.
Bd6 {[%clk 0:00:12.8]} 75... Bc4 {[%clk 0:00:05.3]} 76. Be7 {[%clk 0:00:12.6]}
76... Bb5 {[%clk 0:00:05.2]} 77. Bd8 {[%clk 0:00:12.1]} 77... Bc4 {[%clk
0:00:05.1]} 78. Bc7 {[%clk 0:00:11.8]} 78... Bb5 {[%clk 0:00:05]} 79. Bd6 {[%clk
0:00:11.5]} 79... Bc4 {[%clk 0:00:04.9]} 80. Be7 {[%clk 0:00:11.2]} 1/2-1/2

[Event "Live Chess"]
[Site "Chess.com"]
[Date "2023.05.21"]
[Round "-"]
[White "grillage"]
[Black "raminguy"]
[Result "1/2-1/2"]
[WhiteElo "1810"]
[BlackElo "1951"]
[TimeControl "300"]
[EndTime "20:20:01 PDT"]
[Termination "Game drawn by repetition"]

1. d4 {[%clk 0:04:59]} 1... d5 {[%clk 0:04:58.8]} 2. Nf3 {[%clk 0:04:57.5]} 2...
e6 {[%clk 0:04:57.5]} 3. c4 {[%clk 0:04:52.1]} 3... a6 {[%clk 0:04:56.1]} 4.
cxd5 {[%clk 0:04:47.4]} 4... exd5 {[%clk 0:04:55]} 5. Nc3 {[%clk 0:04:47]} 5...
c6 {[%clk 0:04:54.2]} 6. Qc2 {[%clk 0:04:45]} 6... Nf6 {[%clk 0:04:53.2]} 7. Bg5
{[%clk 0:04:44]} 7... Be7 {[%clk 0:04:52.2]} 8. e3 {[%clk 0:04:43.3]} 8... O-O
{[%clk 0:04:50.7]} 9. Bd3 {[%clk 0:04:42.4]} 9... h6 {[%clk 0:04:49.4]} 10. Bh4
{[%clk 0:04:40.9]} 10... Nbd7 {[%clk 0:04:45.2]} 11. O-O {[%clk 0:04:39.3]}
11... Re8 {[%clk 0:04:43.8]} 12. Rab1 {[%clk 0:04:37.7]} 12... Nf8 {[%clk
0:04:40.4]} 13. h3 {[%clk 0:04:31.3]} 13... Be6 {[%clk 0:04:35.3]} 14. b4 {[%clk
0:04:29.6]} 14... Nh5 {[%clk 0:04:27.2]} 15. Bxe7 {[%clk 0:04:27.4]} 15... Qxe7
{[%clk 0:04:27.1]} 16. a4 {[%clk 0:04:24.9]} 16... Bd7 {[%clk 0:04:17.9]} 17. b5
{[%clk 0:04:19.9]} 17... axb5 {[%clk 0:04:16.2]} 18. axb5 {[%clk 0:04:18.8]}
18... Nf6 {[%clk 0:04:12]} 19. bxc6 {[%clk 0:04:16.5]} 19... Bxc6 {[%clk
0:04:10.4]} 20. Ne5 {[%clk 0:04:14.9]} 20... Rec8 {[%clk 0:04:03.5]} 21. Qb3
{[%clk 0:03:58.3]} 21... Ra3 {[%clk 0:03:58.4]} 22. Qb2 {[%clk 0:03:52.5]} 22...
Be8 {[%clk 0:03:34.5]} 23. Rfc1 {[%clk 0:03:42.3]} 23... Bc6 {[%clk 0:03:24.5]}
24. Bf5 {[%clk 0:03:40.2]} 24... Rca8 {[%clk 0:03:21]} 25. Nxc6 {[%clk
0:03:34.1]} 25... bxc6 {[%clk 0:03:20.9]} 26. Qb7 {[%clk 0:03:23.3]} 26... Qxb7
{[%clk 0:03:05.4]} 27. Rxb7 {[%clk 0:03:21.5]} 27... g6 {[%clk 0:02:54.7]} 28.
Bg4 {[%clk 0:03:10.4]} 28... Nxg4 {[%clk 0:02:51.3]} 29. hxg4 {[%clk 0:03:09.6]}
29... Ne6 {[%clk 0:02:39.4]} 30. Ne2 {[%clk 0:03:03.2]} 30... Ra1 {[%clk
0:02:32.1]} 31. Rxa1 {[%clk 0:02:53.8]} 31... Rxa1+ {[%clk 0:02:30.2]} 32. Kh2
{[%clk 0:02:50.9]} 32... Ra2 {[%clk 0:02:29.7]} 33. Nf4 {[%clk 0:02:30.8]} 33...
Nxf4 {[%clk 0:02:26.8]} 34. exf4 {[%clk 0:02:29.3]} 34... Rxf2 {[%clk
0:02:26.1]} 35. Kg3 {[%clk 0:02:22.3]} 35... Rd2 {[%clk 0:02:23.7]} 36. Rb4
{[%clk 0:02:21.3]} 36... Kg7 {[%clk 0:02:19.3]} 37. g5 {[%clk 0:02:19.8]} 37...
hxg5 {[%clk 0:02:17.7]} 38. fxg5 {[%clk 0:02:18.1]} 38... Kf8 {[%clk 0:02:16.2]}
39. Kf3 {[%clk 0:02:15.6]} 39... Ke7 {[%clk 0:02:14.4]} 40. g4 {[%clk
0:02:11.1]} 40... Ke6 {[%clk 0:02:12]} 41. Kf4 {[%clk 0:02:10.2]} 41... Rd3
{[%clk 0:02:07.2]} 42. Ra4 {[%clk 0:02:04.2]} 42... Kd6 {[%clk 0:02:02.3]} 43.
Rb4 {[%clk 0:02:01.4]} 43... Ke6 {[%clk 0:02:00.9]} 44. Ra4 {[%clk 0:02:00]}
44... Rc3 {[%clk 0:01:47.9]} 45. Ra6 {[%clk 0:01:43.9]} 45... Rc4 {[%clk
0:01:36.8]} 46. Ke3 {[%clk 0:01:42.6]} 46... Kd6 {[%clk 0:01:33.3]} 47. Ra7
{[%clk 0:01:41]} 47... Rc3+ {[%clk 0:01:29.8]} 48. Kf4 {[%clk 0:01:39.2]} 48...
Ke6 {[%clk 0:01:24.4]} 49. Ra6 {[%clk 0:01:37.4]} 49... Rc1 {[%clk 0:01:22.5]}
50. Ke3 {[%clk 0:01:34.1]} 50... Kd6 {[%clk 0:01:18.7]} 51. Ra7 {[%clk
0:01:32.3]} 51... Rf1 {[%clk 0:01:14.2]} 52. Ra6 {[%clk 0:01:28.9]} 52... Rg1
{[%clk 0:01:05.2]} 53. Kf3 {[%clk 0:01:26.9]} 53... Rd1 {[%clk 0:00:59.7]} 54.
Ke3 {[%clk 0:01:25.9]} 54... Rg1 {[%clk 0:00:58.8]} 55. Kf3 {[%clk 0:01:25.1]}
55... Rf1+ {[%clk 0:00:56.9]} 56. Ke3 {[%clk 0:01:23.9]} 56... Rb1 {[%clk
0:00:52.1]} 57. Ra7 {[%clk 0:01:21.8]} 57... Rb3+ {[%clk 0:00:50.6]} 58. Kf4
{[%clk 0:01:20.1]} 58... Ke6 {[%clk 0:00:49.9]} 59. Ra6 {[%clk 0:01:18.3]} 59...
Kd6 {[%clk 0:00:48.7]} 60. Ra7 {[%clk 0:01:17.5]} 60... Ke6 {[%clk 0:00:47.4]}
61. Ra6 {[%clk 0:01:16.4]} 61... Kd6 {[%clk 0:00:47]} 62. Ra7 {[%clk 0:01:15.7]}
1/2-1/2

[Event "Live Chess"]
[Site "Chess.com"]
[Date "2023.05.21"]
[Round "-"]
[White "DRS44"]
[Black "LutherSullivan"]
[Result "0-1"]
[WhiteElo "1320"]
[BlackElo "2201"]
[TimeControl "300"]
[EndTime "20:20:02 PDT"]
[Termination "LutherSullivan won by resignation"]

1. e4 {[%clk 0:04:48.8]} 1... e5 {[%clk 0:04:57.8]} 2. Nc3 {[%clk 0:04:43.3]}
2... Nc6 {[%clk 0:04:57.2]} 3. Bc4 {[%clk 0:04:36]} 3... Nf6 {[%clk 0:04:47.1]}
4. Nf3 {[%clk 0:04:25.9]} 4... Nxe4 {[%clk 0:04:45.2]} 5. Bxf7+ {[%clk
0:04:19.2]} 5... Kxf7 {[%clk 0:04:44.6]} 6. Nxe4 {[%clk 0:04:16.4]} 6... Be7
{[%clk 0:04:39.5]} 7. d4 {[%clk 0:04:04]} 7... d5 {[%clk 0:04:37.6]} 8. Neg5+
{[%clk 0:03:56]} 8... Bxg5 {[%clk 0:04:33.6]} 9. Nxg5+ {[%clk 0:03:51.5]} 9...
Kg8 {[%clk 0:04:27.7]} 10. Qf3 {[%clk 0:03:39.9]} 10... Qd7 {[%clk 0:04:11.8]}
11. O-O {[%clk 0:03:27.6]} 11... Nxd4 {[%clk 0:04:07.9]} 12. Qe2 {[%clk
0:03:13.5]} 12... Nxe2+ {[%clk 0:04:03.6]} 0-1

[Event "Live Chess"]
[Site "Chess.com"]
[Date "2023.05.21"]
[Round "-"]
[White "KeithArkell"]
[Black "ramses-IIG"]
[Result "1-0"]
[WhiteElo "2570"]
[BlackElo "870"]
[TimeControl "300"]
[EndTime "20:20:04 PDT"]
[Termination "KeithArkell won by resignation"]

1. d4 {[%clk 0:04:57.4]} 1... d5 {[%clk 0:04:59.9]} 2. Nf3 {[%clk 0:04:56.4]}
2... Nc6 {[%clk 0:04:59.8]} 3. c4 {[%clk 0:04:55.8]} 3... dxc4 {[%clk
0:04:57.6]} 4. e4 {[%clk 0:04:52.3]} 4... b5 {[%clk 0:04:57]} 5. d5 {[%clk
0:04:51]} 5... Nb8 {[%clk 0:04:52.9]} 6. a4 {[%clk 0:04:50.2]} 6... Ba6 {[%clk
0:04:49.3]} 7. axb5 {[%clk 0:04:48.9]} 7... Bxb5 {[%clk 0:04:47.2]} 8. Na3
{[%clk 0:04:47.8]} 8... Qd7 {[%clk 0:04:43.2]} 9. Nxb5 {[%clk 0:04:46.6]} 9...
Qxb5 {[%clk 0:04:42.7]} 10. Nd4 {[%clk 0:04:41.1]} 10... Qb4+ {[%clk 0:04:39.5]}
11. Bd2 {[%clk 0:04:39.5]} 11... Qxb2 {[%clk 0:04:38.4]} 12. Qa4+ {[%clk
0:04:36.1]} 12... Nd7 {[%clk 0:04:32.3]} 13. Nb5 {[%clk 0:04:33.3]} 13... Kd8
{[%clk 0:04:16.8]} 14. Bc3 {[%clk 0:04:30.7]} 14... Qb3 {[%clk 0:04:11.2]} 15.
Qa5 {[%clk 0:04:25.4]} 15... Nb6 {[%clk 0:03:53.3]} 16. Nd4 {[%clk 0:04:19.1]}
16... Qxc3+ {[%clk 0:03:10.5]} 17. Qxc3 {[%clk 0:04:16.8]} 17... e6 {[%clk
0:03:10.4]} 18. dxe6 {[%clk 0:04:15]} 18... fxe6 {[%clk 0:03:04.7]} 19. Nxe6+
{[%clk 0:04:14.1]} 19... Ke7 {[%clk 0:03:03.2]} 20. Nxf8 {[%clk 0:04:10]} 20...
Rxf8 {[%clk 0:03:00.5]} 21. Bxc4 {[%clk 0:04:07.7]} 21... Nxc4 {[%clk
0:02:58.4]} 22. Qxc4 {[%clk 0:04:07.1]} 22... Nf6 {[%clk 0:02:53.2]} 23. Rxa7
{[%clk 0:04:05.6]} 23... Rc8 {[%clk 0:02:37.9]} 24. Rxc7+ {[%clk 0:04:02.5]}
24... Rxc7 {[%clk 0:02:37.8]} 25. Qxc7+ {[%clk 0:04:01.5]} 25... Ke6 {[%clk
0:02:36.8]} 26. O-O {[%clk 0:03:59.9]} 26... Nxe4 {[%clk 0:02:28.4]} 27. Qc6+
{[%clk 0:03:57.6]} 27... Ke5 {[%clk 0:02:27]} 28. Re1 {[%clk 0:03:56.4]} 28...
Kf5 {[%clk 0:02:21.5]} 29. Rxe4 {[%clk 0:03:55.2]} 29... Rd8 {[%clk 0:02:19.1]}
30. Qe6+ {[%clk 0:03:54]} 30... Kg5 {[%clk 0:02:16.5]} 31. Qg4+ {[%clk
0:03:52.9]} 31... Kh6 {[%clk 0:02:14.2]} 32. Qh4+ {[%clk 0:03:50.4]} 32... Kg6
{[%clk 0:02:12.1]} 33. Qxd8 {[%clk 0:03:49.3]} 1-0

[Event "Live Chess"]
[Site "Chess.com"]
[Date "2023.05.21"]
[Round "-"]
[White "Biranidun"]
[Black "RockTroll"]
[Result "1-0"]
[WhiteElo "2520"]
[BlackElo "2257"]
[TimeControl "300"]
[EndTime "20:22:00 PDT"]
[Termination "Biranidun won by resignation"]

1. e4 {[%clk 0:04:58.6]} 1... e5 {[%clk 0:04:56.2]} 2. Nf3 {[%clk 0:04:57.7]}
2... Nc6 {[%clk 0:04:54.8]} 3. Bc4 {[%clk 0:04:57.2]} 3... Bc5 {[%clk
0:04:52.9]} 4. c3 {[%clk 0:04:56.3]} 4... Nf6 {[%clk 0:04:51.8]} 5. d4 {[%clk
0:04:55.8]} 5... exd4 {[%clk 0:04:51.1]} 6. b4 {[%clk 0:04:55.5]} 6... Bb6
{[%clk 0:03:51.7]} 7. e5 {[%clk 0:04:39.9]} 7... d5 {[%clk 0:03:47.4]} 8. exf6
{[%clk 0:04:39]} 8... dxc4 {[%clk 0:03:45.9]} 9. Qe2+ {[%clk 0:04:38.8]} 9...
Be6 {[%clk 0:03:41.3]} 10. b5 {[%clk 0:04:38.2]} 10... Nb4 {[%clk 0:02:57.4]}
11. fxg7 {[%clk 0:04:35.4]} 11... Rg8 {[%clk 0:02:56]} 12. cxb4 {[%clk 0:04:35]}
12... Qf6 {[%clk 0:02:45.9]} 13. Qe5 {[%clk 0:03:43.3]} 13... Qxe5+ {[%clk
0:02:28]} 14. Nxe5 {[%clk 0:03:43.2]} 14... Rxg7 {[%clk 0:02:27.5]} 15. Nd2
{[%clk 0:03:37.2]} 15... c3 {[%clk 0:02:06.3]} 16. Ndc4 {[%clk 0:03:29.5]} 16...
Bxc4 {[%clk 0:01:58.7]} 17. Nxc4 {[%clk 0:03:29.4]} 17... d3 {[%clk 0:01:58.2]}
18. O-O {[%clk 0:03:07.8]} 18... d2 {[%clk 0:01:45.1]} 19. Nxd2 {[%clk
0:03:06.5]} 19... cxd2 {[%clk 0:01:44.3]} 20. Bxd2 {[%clk 0:03:06.4]} 20...
O-O-O {[%clk 0:01:43.1]} 21. Bc3 {[%clk 0:03:03.4]} 21... Rg5 {[%clk 0:01:35.7]}
22. Bf6 {[%clk 0:03:01]} 1-0

[Event "Live Chess"]
[Site "Chess.com"]
[Date "2023.05.21"]
[Round "-"]
[White "chessfiction"]
[Black "worldchessleaguelive"]
[Result "1-0"]
[WhiteElo "2341"]
[BlackElo "1366"]
[TimeControl "300"]
[EndTime "20:22:25 PDT"]
[Termination "chessfiction won by checkmate"]

1. e4 {[%clk 0:04:59]} 1... d5 {[%clk 0:04:58.6]} 2. exd5 {[%clk 0:04:57.6]}
2... Qxd5 {[%clk 0:04:57.7]} 3. c4 {[%clk 0:04:56.1]} 3... Qd8 {[%clk
0:04:55.3]} 4. d4 {[%clk 0:04:55.4]} 4... Nf6 {[%clk 0:04:54]} 5. d5 {[%clk
0:04:54.4]} 5... e6 {[%clk 0:04:52.7]} 6. Nc3 {[%clk 0:04:54]} 6... exd5 {[%clk
0:04:51.8]} 7. cxd5 {[%clk 0:04:53.9]} 7... c6 {[%clk 0:04:50.5]} 8. Bg5 {[%clk
0:04:51.4]} 8... cxd5 {[%clk 0:04:47.2]} 9. Bb5+ {[%clk 0:04:46.3]} 9... Bd7
{[%clk 0:04:45.1]} 10. Qe2+ {[%clk 0:04:45.4]} 10... Be7 {[%clk 0:04:43.7]} 11.
Bxf6 {[%clk 0:04:44]} 11... gxf6 {[%clk 0:04:42]} 12. Nxd5 {[%clk 0:04:42.9]}
12... Bxb5 {[%clk 0:04:37.3]} 13. Qxb5+ {[%clk 0:04:39.5]} 13... Qd7 {[%clk
0:04:28.6]} 14. Nc7+ {[%clk 0:04:37.3]} 14... Kd8 {[%clk 0:04:25.1]} 15. Qxd7+
{[%clk 0:04:36.1]} 15... Kxd7 {[%clk 0:04:23.5]} 16. Nxa8 {[%clk 0:04:36]} 16...
Nc6 {[%clk 0:04:20.5]} 17. O-O-O+ {[%clk 0:04:33]} 17... Kc8 {[%clk 0:04:19.1]}
18. Nf3 {[%clk 0:04:30]} 18... Kb8 {[%clk 0:04:16.5]} 19. Rhe1 {[%clk
0:04:26.5]} 19... Kxa8 {[%clk 0:04:13.6]} 20. Rd7 {[%clk 0:04:26]} 20... Bb4
{[%clk 0:04:07.2]} 21. Re4 {[%clk 0:04:22.7]} 21... Rc8 {[%clk 0:04:00.2]} 22.
Kb1 {[%clk 0:04:20.2]} 22... a5 {[%clk 0:03:51.8]} 23. a3 {[%clk 0:04:15.4]}
23... Bf8 {[%clk 0:03:42.7]} 24. Rxf7 {[%clk 0:04:13.3]} 24... Ne5 {[%clk
0:03:40.5]} 25. Nxe5 {[%clk 0:04:11.5]} 25... fxe5 {[%clk 0:03:39.8]} 26. Rxe5
{[%clk 0:04:11.4]} 26... Bh6 {[%clk 0:03:37.1]} 27. Rxa5+ {[%clk 0:04:08.6]}
27... Kb8 {[%clk 0:03:35.3]} 28. Rh5 {[%clk 0:04:07.4]} 28... Rc1+ {[%clk
0:03:33.7]} 29. Ka2 {[%clk 0:04:06.5]} 29... Bd2 {[%clk 0:03:32.3]} 30. Rhxh7
{[%clk 0:04:06.4]} 30... Rg1 {[%clk 0:03:27.6]} 31. Rxb7+ {[%clk 0:04:05.9]}
31... Ka8 {[%clk 0:03:26]} 32. Rbg7 {[%clk 0:04:04.9]} 32... Be1 {[%clk
0:03:23.2]} 33. Rg8# {[%clk 0:04:03.8]} 1-0